[Event "5th Schach960-Festival 2024"]
[Site "Berlin"]
[Date "2024.02.11"]
[Round "7.9"]
[White "Loew, Gerald"]
[Black "Zenker, Ulrich"]
[Result "1-0"]
[WhiteElo "2167"]
[BlackElo "2115"]
[Annotator "TA"]
[PlyCount "18"]
[EventDate "2024.02.08"]
[EventType "swiss"]
[EventCountry "GER"]
[SourceTitle "playchess.com"]
[Source "ChessBase"]
[SourceQuality "1"]
[TimeControl "1500+30"]

{[%evp 9,18,6,535,458,643,645,823,629,959,550,723]} 1. b4 {[%emt 0:00:00]} e5 {[%emt 0:01:11]} 2. Nf3 {[%emt 0:00:46]} d6 {[%emt 0:00:11]} 3. d4 {[%emt 0:01:04]} Be6 {[%emt 0:16:51]} 4. Bb2 {[%emt 0:03:10]} f6 {[%emt 0:00:46]} 5. c3 {[%emt 0:17:00]} Bb3 $2 {[%emt 0:02:53][%mdl 8192] [#]} 6. axb3 {[%emt 0:00:00] White is clearly winning.} b6 {[%emt 0:00:33]} (6... e4 $142 7. Nh4 d5) 7. e4 $18 {[%emt 0:02:47]} b5 {[%emt 0:03:41]} 8. Ba3 {[%emt 0:00:00]} Kf7 {[%emt 0:00:55]} 9. Ke2 {[%emt 0:01:26]} Na6 {[%emt 0:02:59] White took control after the opening.   Weighted Error Value: White=1.64/Black=3.13.  Mistake:       	---       	Black=1      OK:         	White=1     	---} 1-0

[Event "5th Schach960-Festival 2024"]
[Site "Berlin"]
[Date "2024.02.11"]
[Round "8.1"]
[White "Fridman, Daniel"]
[Black "Azarov, Sergei"]
[Result "1/2-1/2"]
[WhiteElo "2588"]
[BlackElo "2596"]
[Annotator "TA"]
[PlyCount "19"]
[EventDate "2024.02.08"]
[EventType "swiss"]
[EventCountry "GER"]
[SourceTitle "playchess.com"]
[Source "ChessBase"]
[SourceQuality "1"]
[TimeControl "1500+30"]

{[%evp 9,19,-13,0,-1,4,-2,0,-460,-458,-1275,-606,-1233]} 1. f4 {[%emt 0:00:30]} d5 {[%emt 0:00:37]} 2. g3 {[%emt 0:00:06]} Nf6 {[%emt 0:00:20]} 3. Nf3 {[%emt 0:00:04]} Nc6 {[%emt 0:00:23]} 4. Nc3 {[%emt 0:00:06]} h6 {[%emt 0:00:48]} 5. d3 {[%emt 0:03:54]} e6 {[%emt 0:00:18]} 6. a3 {[%emt 0:01:22]} a6 {[%emt 0:02:05]} 7. Qd2 {[%emt 0:01:38]} Bd6 {[%emt 0:01:04]} 8. Nd4 $2 {[%emt 0:01:57][%mdl 8192]} Nxd4 $19 {[%emt 0:00:21]} 9. e4 {[%emt 0:05:33]} (9. Bg2 $142) 9... dxe4 {[%emt 0:07:09] [#] Threatens to win with ...Nf3+.} 10. Nxe4 {[%emt 0:00:00][%mdl 32768] Black took control after the opening.   Weighted Error Value: White=2.45/Black=1.26.  Loses game:     	White=1     	---        Mistake:       	White=1     	---        Inaccurate:     	White=1     	Black=1      Best:        	---       	Black=1     . An unexpected result.} 1/2-1/2

[Event "5th Schach960-Festival 2024"]
[Site "Berlin"]
[Date "2024.02.11"]
[Round "8.3"]
[White "Kunin, Vitaly"]
[Black "Glek, Igor"]
[Result "1-0"]
[WhiteElo "2521"]
[BlackElo "2423"]
[Annotator "TA"]
[PlyCount "16"]
[EventDate "2024.02.08"]
[EventType "swiss"]
[EventCountry "GER"]
[SourceTitle "playchess.com"]
[Source "ChessBase"]
[SourceQuality "1"]
[TimeControl "1500+30"]

{[%evp 9,16,5,129,36,239,112,202,174,250]} 1. e4 {[%emt 0:00:07]} e5 {[%emt 0:00:05]} 2. f4 {[%emt 0:01:11]} f6 {[%emt 0:01:17]} 3. Nc3 {[%emt 0:01:50]} c6 {[%emt 0:06:11]} 4. Qf3 {[%emt 0:06:30]} Be7 {[%emt 0:10:39]} 5. Qf2 {[%emt 0:08:26]} b6 {[%emt 0:05:04]} (5... d5 $11 {keeps the balance.}) 6. d4 {[%emt 0:04:40] White is more active.} ({White should try} 6. Nf3 $16) 6... g6 $2 {[%emt 0:03:00] [#]} (6... exd4 $14 7. Qxd4 Bc5) 7. d5 {[%emt 0:02:32]} (7. fxe5 $18 {and White stays clearly on top. And now Bc4 would win.} fxe5 8. dxe5) 7... a5 {[%emt 0:01:07] Black is weak on the light squares} (7... Bb7 $16 {was worth a try.}) 8. h3 {[%emt 0:02:06]} Qc7 {[%emt 0:00:00] Weighted Error Value: White=0.84/Black=1.48.  Loses game:     	---       	Black=1      Mistake:       	White=1     	Black=2} (8... Bb4 $142 9. Bd2 Qc7 10. fxe5 fxe5) 1-0

[Event "5th Schach960-Festival 2024"]
[Site "Berlin"]
[Date "2024.02.11"]
[Round "8.5"]
[White "Fromm, Marius"]
[Black "Zatonskih, Anna"]
[Result "1-0"]
[WhiteElo "2435"]
[BlackElo "2347"]
[Annotator "TA"]
[PlyCount "19"]
[EventDate "2024.02.08"]
[EventType "swiss"]
[EventCountry "GER"]
[SourceTitle "playchess.com"]
[Source "ChessBase"]
[SourceQuality "1"]
[TimeControl "1500+30"]

{[%evp 9,19,93,184,173,497,-104,126,29,56,77,460,-52]} 1. e4 {[%emt 0:00:09]} e5 {[%emt 0:00:42]} 2. Nc3 {[%emt 0:00:28]} Nc6 {[%emt 0:00:22]} 3. f4 {[%emt 0:01:36]} f6 {[%emt 0:03:10]} 4. Nf3 {[%emt 0:00:39]} exf4 {[%emt 0:03:23]} 5. d4 {[%emt 0:00:11]} d5 {[%emt 0:00:05]} 6. exd5 $18 {[%emt 0:01:51]} (6. Bxf4 $6 dxe4 7. Nxe4 Bf5 $14) (6. Nxd5 g5 $16) 6... Bb4 $2 {[%emt 0:05:16] [#]} (6... Nb4) 7. Nd2 $2 {[%emt 0:02:23]} ({Less strong is} 7. Bxf4 Qxd5 8. Bd3 (8. Bxc7 Nge7 $16) 8... Qe6+ 9. Kf1 Bxc3 10. bxc3 Nge7 $16) (7. dxc6 $18 g5 8. Qe2+ Kf8 9. Bd2) 7... Na5 $2 {[%emt 0:02:14]} (7... Nxd4 $17 {Threatens to win with ...Qe7+.} 8. Bd3 Qe7+ 9. Kf2 Bc5) 8. Rb1 {[%emt 0:03:08]} (8. Ndb1 $16) 8... Qe7+ {[%emt 0:12:13]} 9. Be2 {[%emt 0:17:57] And now 0-0 would win.} Nb3 $2 {[%emt 0:01:39][%mdl 8192]} 10. Nc4 $2 {[%emt 0:00:46][%mdl 32768] Weighted Error Value: White=1.56/Black=2.34.  Loses game:     	---       	Black=1      Missed win:     	White=2     	---        Mistake:       	White=1     	Black=2      Inaccurate:     	---       	Black=1      Best:        	White=1     	---       . Loss on time!?} ({Resist} 10. axb3 h5 11. O-O g5 $18) (10. Nxb3 $18 f3 11. gxf3) 1-0

[Event "5th Schach960-Festival 2024"]
[Site "Berlin"]
[Date "2024.02.11"]
[Round "8.6"]
[White "Bartelt, Max Peter"]
[Black "Dgebuadze, Alexandre"]
[Result "0-1"]
[ECO "C25"]
[WhiteElo "2059"]
[BlackElo "2441"]
[Annotator "TA"]
[PlyCount "21"]
[EventDate "2024.02.08"]
[EventType "swiss"]
[EventCountry "GER"]
[SourceTitle "playchess.com"]
[Source "ChessBase"]
[SourceQuality "1"]
[TimeControl "1500+30"]

{[%evp 9,21,24,185,-253,-216,-230,265,-310,182,-365,183,-313,224,-287]} 1. e4 {[%emt 0:00:41]} e5 {[%emt 0:00:08]} 2. Nc3 {[%emt 0:01:40]} f6 {[%emt 0:01:03]} 3. g3 {[%emt 0:01:41]} Nc6 {[%emt 0:00:37]} 4. Nf3 {[%emt 0:06:47]} Bb4 {[%emt 0:06:30]} 5. Bg2 {[%emt 0:04:53]} d5 $2 {[%emt 0:09:09] [#]} 6. Nd4 $4 {[%emt 0:04:47][%mdl 8192]} Nxd4 {[%emt 0:03:20]} 7. Nxd5 {[%emt 0:03:08] [#]} Bh3 $4 {[%emt 0:02:13][%mdl 8192]} 8. Rg1 $4 {[%emt 0:01:33][%mdl 8192]} (8. Bxh3 $18 Nc6 9. c3) 8... Bd6 {[%emt 0:03:20][%mdl 8192]} (8... Bxg2 $19 9. Rxg2 Bd6) 9. b3 $4 {[%emt 0:03:14][%mdl 8192] [#]} (9. Bxh3 $18 {And now c3 would win.} Nc6 10. c3) 9... b6 $4 {[%emt 0:01:28][%mdl 8192]} 10. Bb2 $4 {[%emt 0:00:00][%mdl 8192] [#]} (10. Bxh3 $18 {is the narrow road to win. Strongly threatening c3.} c6 11. Ne3) 10... Bf5 $4 {[%emt 0:02:42][%mdl 8192]} 11. Bc1 $4 {[%emt 0:02:36][%mdl 8192] Weighted Error Value: White=3.31/Black=3.07.  Missed win:     	White=4     	Black=4      OK:         	White=1     	---} (11. exf5 $18 {was the only winning move.} Kf7 12. Qh5+ Kf8 13. Ne3) 0-1

[Event "5th Schach960-Festival 2024"]
[Site "Berlin"]
[Date "2024.02.11"]
[Round "8.7"]
[White "Zenker, Ulrich"]
[Black "Thomsen, Phil"]
[Result "1/2-1/2"]
[ECO "C25"]
[WhiteElo "2115"]
[BlackElo "2102"]
[Annotator "NA RC"]
[PlyCount "27"]
[EventDate "2024.02.08"]
[EventType "swiss"]
[EventCountry "GER"]
[SourceTitle "playchess.com"]
[Source "ChessBase"]
[SourceQuality "1"]
[TimeControl "1500+30"]

1. e4 {[%emt 0:00:03]} e5 {[%emt 0:00:07]} 2. Nc3 {[%emt 0:01:27]} Nc6 {[%emt 0:00:59]} 3. Bc4 {[%emt 0:03:25]} Bc5 {[%emt 0:05:06]} 4. f4 {[%emt 0:05:00]} f6 {[%emt 0:05:31]} 5. Qg4 {[%emt 0:03:19]} Qe7 {[%emt 0:04:08]} 6. fxe5 {[%emt 0:07:11]} fxe5 {[%emt 0:01:10]} 7. Bxg8 {[%emt 0:03:19]} Rxg8 {[%emt 0:00:53]} 8. Nd5 {[%emt 0:00:05]} Qe6 {[%emt 0:00:18]} 9. Qxe6+ {[%emt 0:03:29]} dxe6 {[%emt 0:00:01]} 10. Nc3 {[%emt 0:00:17]} Rf8 {[%emt 0:04:43]} 11. Nd1 {[%emt 0:01:24]} Kd7 {[%emt 0:01:59]} 12. c3 {[%emt 0:00:15]} Bxg1 {[%emt 0:00:04]} 13. Rxg1 {[%emt 0:00:02]} Ke7 {[%emt 0:07:01]} 14. Rf1 {[%emt 0:03:14]} 1/2-1/2

[Event "5th Schach960-Festival 2024"]
[Site "Berlin"]
[Date "2024.02.11"]
[Round "8.10"]
[White "Kollars, Dmitrij"]
[Black "Loew, Gerald"]
[Result "1-0"]
[WhiteElo "2632"]
[BlackElo "2167"]
[Annotator "TA"]
[PlyCount "16"]
[EventDate "2024.02.08"]
[EventType "swiss"]
[EventCountry "GER"]
[SourceTitle "playchess.com"]
[Source "ChessBase"]
[SourceQuality "1"]
[TimeControl "1500+30"]

{[%evp 11,16,45,84,37,38,-39,180]} 1. e4 {[%emt 0:00:30]} d5 {[%emt 0:01:00]} 2. exd5 {[%emt 0:00:35]} Nf6 {[%emt 0:00:11]} 3. d4 {[%emt 0:01:52]} Qxd5 {[%emt 0:01:17]} 4. Nf3 {[%emt 0:01:27]} Nc6 {[%emt 0:00:44]} 5. Nc3 {[%emt 0:00:24]} Qa5 {[%emt 0:00:17]} 6. Bb5 {[%emt 0:01:22]} Ne4 {[%emt 0:03:44]} 7. Bxc6+ {[%emt 0:04:12]} ({Better is} 7. Rb1 $16) 7... bxc6 $14 {[%emt 0:03:49]} 8. Rb1 {[%emt 0:00:00]} (8. O-O $14 Nxc3 9. bxc3) 8... Kd8 $2 {[%emt 0:10:03] Loses game:     	---       	Black=1      Mistake:       	White=1     	---} (8... Nxc3 $15 {stays ahead.} 9. bxc3 Qxc3+ 10. Qd2 Qxd2+ 11. Bxd2 e6) 1-0

[Event "5th Schach960-Festival 2024"]
[Site "Berlin"]
[Date "2024.02.11"]
[Round "9.2"]
[White "Orlov, Andrey"]
[Black "Fromm, Marius"]
[Result "0-1"]
[ECO "C01"]
[WhiteElo "2487"]
[BlackElo "2435"]
[Annotator "TA"]
[PlyCount "27"]
[EventDate "2024.02.08"]
[EventType "swiss"]
[EventCountry "GER"]
[SourceTitle "playchess.com"]
[Source "ChessBase"]
[SourceQuality "1"]
[TimeControl "1500+30"]

{[%evp 9,27,-1100,-58,-1117,63,10,64,-122,36,-103,316,-156,202,-81,277,-254,283,33,402,122]} 1. e4 {[%emt 0:00:49]} b6 {[%emt 0:00:18]} 2. d4 {[%emt 0:00:55]} e6 {[%emt 0:02:41]} 3. Qh5 {[%emt 0:01:25]} Nf6 {[%emt 0:00:00]} 4. Nf3 {[%emt 0:00:08]} Be7 {[%emt 0:00:24]} 5. Nbd2 {[%emt 0:01:31]} O-O $2 {[%emt 0:00:32]} (5... Nxh5 $19 6. a3 Ba6) 6. a3 $2 {[%emt 0:12:50][%mdl 8192] [#]} b5 $2 {[%emt 0:01:37]} 7. Qe5 {[%emt 0:00:44]} ({Better is} 7. Qxb5 $14 d5 8. exd5) 7... a5 {[%emt 0:02:30]} (7... a6 $11) 8. c4 $2 {[%emt 0:00:00]} (8. Bxb5 $14 {stays ahead.} d5 9. Qf4) 8... a4 $2 {[%emt 0:02:06]} (8... bxc4 $17 {...d5 is the strong threat.} 9. Bxc4 d5) 9. b3 {[%emt 0:00:00]} (9. cxb5 $14 {keeps the upper hand.} d6 10. Qf4) 9... Nd5 $2 {[%emt 0:00:18][%mdl 8192]} 10. g3 $2 {[%emt 0:01:50] [#]} (10. exd5 Bf6 $18) (10. cxd5 $18 b4 11. axb4) 10... c6 $2 {[%emt 0:04:09]} 11. g4 $2 {[%emt 0:07:06] [#]} (11. exd5 exd5 12. Bd3 (12. cxb5 d6 $16) 12... bxc4) (11. cxd5 $18 {Threatens to win with d6.} d6 12. Qf4) 11... Nf4 $2 {[%emt 0:13:58][%mdl 8192]} 12. d5 $4 {[%emt 0:00:00][%mdl 8192] [#]} (12. Qxf4 $18 {is the narrow road to win. And now b4 would win.} axb3 13. cxb5 (13. Nxb3 d5 $18)) 12... Ra7 $4 {[%emt 0:00:00][%mdl 8192]} 13. h4 $2 {[%emt 0:00:00]} ({Less strong is} 13. Qxb8 Rc7 $16) ({White should try} 13. Qxf4 $18 d6 14. dxe6 (14. cxb5 exd5 15. Be2 f5 $18)) 13... h5 $2 {[%emt 0:02:23][%mdl 8192]} 14. Rg1 $2 {[%emt 0:00:00][%mdl 32768] Weighted Error Value: White=2.60/Black=3.16.  Loses game:     	---       	Black=4      Missed win:     	White=5     	Black=1      Mistake:       	White=3     	Black=1     . Loss on time!?} ({Weaker is} 14. Qxb8 Rc7 $16) (14. cxb5 Bf6 15. Qxb8 (15. Qxf4 Bxa1 16. Qxb8 Rc7 $11) 15... Bxa1 $16) (14. gxh5 Qc7 $16) (14. Qxf4 $18 {is the precise move to win.} exd5 15. Qxb8) 0-1

[Event "5th Schach960-Festival 2024"]
[Site "Berlin"]
[Date "2024.02.11"]
[Round "9.3"]
[White "Bluebaum, Matthias"]
[Black "Fedorchuk, Sergey A."]
[Result "1/2-1/2"]
[WhiteElo "2655"]
[BlackElo "2550"]
[Annotator "TA"]
[PlyCount "18"]
[EventDate "2024.02.08"]
[EventType "swiss"]
[EventCountry "GER"]
[SourceTitle "playchess.com"]
[Source "ChessBase"]
[SourceQuality "1"]
[TimeControl "1500+30"]

{[%evp 9,18,0,53,-125,77,-194,0,-128,158,-360,87]} 1. e4 {[%emt 0:00:15]} e5 {[%emt 0:01:38]} 2. Nf3 {[%emt 0:00:44]} b6 {[%emt 0:01:37]} 3. b4 {[%emt 0:00:49]} f6 {[%emt 0:00:06]} 4. c4 {[%emt 0:04:05]} Ne7 {[%emt 0:04:05]} 5. Bd3 {[%emt 0:07:47]} a5 {[%emt 0:11:39]} (5... Ng6 $11) 6. Qb3 $2 {[%emt 0:04:18] [#]} (6. b5 $14 {stays ahead.}) 6... f5 $2 {[%emt 0:03:32]} 7. Rf1 $2 {[%emt 0:00:09][%mdl 8192] White is more active.} (7. b5 $16) 7... f4 $2 {[%emt 0:00:15]} (7... axb4 $19 {Hoping for ...Na6.} 8. Qxb4 Na6) 8. Qb2 {[%emt 0:05:17]} (8. c5 $11 Ng6 9. Bc4) 8... b5 $2 {[%emt 0:00:02][%mdl 8192] [#]} 9. Nd4 $2 {[%emt 0:00:00] [#]} f3 $2 {[%emt 0:07:06] Weighted Error Value: White=2.49/Black=1.81.  Loses game:     	White=2     	---        Missed win:     	---       	Black=2      Mistake:       	White=1     	Black=2} 1/2-1/2

[Event "5th Schach960-Festival 2024"]
[Site "Berlin"]
[Date "2024.02.11"]
[Round "9.4"]
[White "Stopa, Jacek"]
[Black "Fridman, Daniel"]
[Result "1-0"]
[ECO "C41"]
[WhiteElo "2344"]
[BlackElo "2588"]
[Annotator "TA"]
[PlyCount "20"]
[EventDate "2024.02.08"]
[EventType "swiss"]
[EventCountry "GER"]
[SourceTitle "playchess.com"]
[Source "ChessBase"]
[SourceQuality "1"]
[TimeControl "1500+30"]

{[%evp 9,20,33,54,55,166,0,313,-919,360,-1314,63,-1448,-461]} 1. e4 {[%emt 0:00:06]} e5 {[%emt 0:00:58]} 2. Nf3 {[%emt 0:00:24]} d6 {[%emt 0:00:36]} 3. d4 {[%emt 0:01:10]} Nf6 {[%emt 0:02:24]} 4. Nc3 {[%emt 0:00:54]} exd4 {[%emt 0:01:02]} 5. Nxd4 {[%emt 0:01:39]} g6 {[%emt 0:04:40]} 6. f3 {[%emt 0:03:37]} d5 {[%emt 0:03:07]} (6... Bg7 $14) 7. Qd2 $2 {[%emt 0:12:55]} ({White should try} 7. exd5 $18 {And now Qe2+ would win.} Bg7 8. Qe2+ Kf8 9. Be3) 7... Nxe4 $2 {[%emt 0:11:51][%mdl 8192] [#]} 8. g3 $4 {[%emt 0:00:00][%mdl 8192]} Qe7 $4 {[%emt 0:00:00][%mdl 8192] [#]} (8... Nxd2 $19 {avoids the disaster.} 9. Bxd2 Bg7) 9. Bh3 {[%emt 0:01:42][%mdl 8192]} a6 $2 {[%emt 0:00:00] [#]} ({Not} 9... Nxg3+ 10. Qe3 Nxh1 (10... Bxh3 11. hxg3 Qxe3+ 12. Bxe3 $15) 11. Bxc8 $11) (9... Nxd2+ $19 10. Kf2 Bxh3 11. Bxd2 Bg7) 10. Na4 $2 {[%emt 0:02:11][%mdl 8192]} Nc5+ {[%emt 0:00:00][%mdl 32768] Weighted Error Value: White=3.03/Black=2.77.  Loses game:     	White=1     	Black=1      Missed win:     	White=3     	Black=1      Mistake:       	---       	Black=1     . Loss on time!?} (10... Nxd2+ $142 11. Kd1 Bxh3 12. Bxd2 Bg7) 1-0

[Event "5th Schach960-Festival 2024"]
[Site "Berlin"]
[Date "2024.02.11"]
[Round "9.5"]
[White "Dgebuadze, Alexandre"]
[Black "Bastians, Felix"]
[Result "1/2-1/2"]
[ECO "A06"]
[WhiteElo "2441"]
[BlackElo "2157"]
[Annotator "TA"]
[PlyCount "33"]
[EventDate "2024.02.08"]
[EventType "swiss"]
[EventCountry "GER"]
[SourceTitle "playchess.com"]
[Source "ChessBase"]
[SourceQuality "1"]
[TimeControl "1500+30"]

{[%evp 9,33,-13,0,-4,-4,0,0,-14,21,-15,158,133,557,235,752,374,825,473,671,393,708,419,813,-48,553,302]} 1. b3 {[%emt 0:00:56]} d5 {[%emt 0:03:38]} 2. Nf3 {[%emt 0:01:06]} Nf6 {[%emt 0:00:29]} 3. g3 {[%emt 0:00:30]} e6 {[%emt 0:04:03]} 4. Bg2 {[%emt 0:03:12]} Be7 {[%emt 0:06:11]} 5. d3 {[%emt 0:00:57]} O-O {[%emt 0:01:12]} 6. O-O {[%emt 0:00:15]} c5 {[%emt 0:01:04]} 7. c4 {[%emt 0:01:22]} b6 {[%emt 0:00:28]} 8. Ne5 {[%emt 0:01:20] The position is equal.} Re8 {[%emt 0:03:42]} 9. h3 {[%emt 0:03:32] [#]} dxc4 $2 {[%emt 0:06:27]} 10. dxc4 {[%emt 0:00:46]} ({Don't take} 10. Bxa8 $6 Qd4 $16) 10... b5 $2 {[%emt 0:01:47][%mdl 8192]} (10... Qc7 $16 {is tougher.}) 11. cxb5 {[%emt 0:03:00]} (11. Qxd8 $142 Rxd8 12. Bxa8) 11... c4 $2 {[%emt 0:00:00]} (11... Nd5 12. Bb2 Rf8) 12. bxc4 {[%emt 0:00:59]} (12. Qxd8 $142 Rxd8 13. Bxa8) 12... a6 $2 {[%emt 0:01:44]} (12... Qc7 13. Bxa8 Qxe5) 13. Ba3 {[%emt 0:06:25]} Nd5 {[%emt 0:00:00]} (13... Qc7 $142 14. Bxe7 (14. Bxa8 Bxa3 15. Nxa3 Qxe5 $18) 14... Qxe5 15. Bxf6 Qxf6) 14. Nd3 {[%emt 0:00:00]} f5 $2 {[%emt 0:00:00]} (14... Bxa3 15. Nxa3 axb5 16. Nxb5 Bd7) 15. Bc5 {[%emt 0:01:52]} Nf4 {[%emt 0:00:00]} (15... Bf6 $142 16. cxd5 Bb7) 16. Bd4 $2 {[%emt 0:01:40] [#]} ({White should play} 16. gxf4 $18 Bxc5 17. Nxc5 (17. Bxa8 Bd4 $18)) 16... Bc5 {[%emt 0:01:07][%mdl 8192]} 17. Nxf4 {[%emt 0:00:25][%mdl 32768] White took control after the opening.   Weighted Error Value: White=2.22/Black=1.95.  Loses game:     	---       	Black=2      Mistake:       	White=2     	Black=6      Inaccurate:     	White=1     	Black=1      OK:         	---       	Black=1     . An unexpected result.} 1/2-1/2

[Event "5th Schach960-Festival 2024"]
[Site "Berlin"]
[Date "2024.02.11"]
[Round "9.7"]
[White "Van den Doel, Erik"]
[Black "Trent, Lawrence"]
[Result "1/2-1/2"]
[ECO "C43"]
[WhiteElo "2551"]
[BlackElo "2406"]
[Annotator "TA"]
[PlyCount "26"]
[EventDate "2024.02.08"]
[EventType "swiss"]
[EventCountry "GER"]
[SourceTitle "playchess.com"]
[Source "ChessBase"]
[SourceQuality "1"]
[TimeControl "1500+30"]

{[%evp 9,26,60,58,75,63,-107,8,-201,-130,-321,-137,-382,-287,-677,-168,-748,-329,-683,-79]} 1. e4 {[%emt 0:00:17]} e5 {[%emt 0:00:02]} 2. Nf3 {[%emt 0:00:08]} Nf6 {[%emt 0:00:17]} 3. d4 {[%emt 0:02:20]} b6 {[%emt 0:00:27]} 4. dxe5 {[%emt 0:02:38]} Nxe4 {[%emt 0:03:51]} 5. Bd3 {[%emt 0:01:16]} d5 {[%emt 0:00:01][%cal Bd7d5,Bd5e4][%mdl 32]} 6. Bxe4 {[%emt 0:02:32]} dxe4 {[%emt 0:00:00]} 7. Ng5 $2 {[%emt 0:00:00] [#]} (7. Qxd8+ $14 {was forced to keep a grip.} Kxd8 8. Ng5) 7... Nc6 {[%emt 0:02:44]} ({Better is} 7... Qxd1+ $17 8. Kxd1 Bg4+ 9. Ke1 Bf5) 8. e6 $2 {[%emt 0:00:55]} (8. Qxd8+ $11 {and White is okay.} Nxd8 9. Nc3) 8... f5 {[%emt 0:03:54] aiming for ...Qxd1+.} (8... Bxe6 9. Nxe6 fxe6 (9... Qxd1+ 10. Kxd1 fxe6 11. Be3 $11) 10. Be3 $15) (8... fxe6 9. Qxd8+ Nxd8 10. Nc3 $15) 9. f3 $2 {[%emt 0:04:05]} (9. Qxd8+ $17 Nxd8 10. Nc3) 9... h6 {[%emt 0:02:28]} (9... Qxd1+ $19 {and Black stays clearly on top.} 10. Kxd1 h6) 10. Nh3 $2 {[%emt 0:04:00]} (10. Qxd8+ $17 Nxd8 11. Nf7 Nxf7 12. exf7+ Kxf7 13. fxe4) 10... Bd6 {[%emt 0:01:34]} 11. b3 $2 {[%emt 0:03:20] [#]} (11. Be3) 11... g5 $2 {[%emt 0:00:00]} (11... Ba6 12. Be3 Qh4+ 13. Bf2 Qf6 14. fxe4 Bb4+ (14... Qxa1 $2 15. Nd2 $19) 15. c3 Bxc3+ (15... fxe4 $2 16. Qd7+ Kf8 17. Qxc6 $18) 16. Nxc3 Qxc3+ 17. Qd2 Qxa1+ 18. Qd1 Qxd1+ (18... Qxa2 19. Qd7+ Kf8 20. Qf7#) 19. Kxd1 O-O-O+ (19... fxe4 $2 20. Kc1 $19) 20. Kc1 fxe4) 12. Nf4 $2 {[%emt 0:00:00]} (12. Bb2 O-O 13. fxe4 Bb4+ (13... Bxe6 14. Qh5 $17) 14. Nd2 Bxe6 (14... fxe4 $2 15. a3 $19) 15. a3 Qxd2+ 16. Qxd2 Bxd2+ 17. Kxd2 Rad8+ (17... fxe4 $2 18. Rae1 $19) 18. Ke2) 12... a5 {[%emt 0:09:28]} (12... gxf4 $142 13. O-O Be5 (13... Bxe6 $2 14. Na3 $19)) 13. h4 $2 {[%emt 0:00:00]} (13. Qd5 Bb4+ (13... Bxf4 $2 {too greedy.} 14. Qxc6+ Ke7 15. Ba3+ Bd6 16. Qxa8 $18) (13... Bb7 14. Qxf5 Bb4+ 15. c3 $16) 14. Bd2) 13... Nd4 $2 {[%emt 0:01:51] White did not feel at home in the position after the opening.   Weighted Error Value: White=2.51/Black=1.97.  Loses game:     	White=3     	---        Missed win:     	---       	Black=1      Mistake:       	White=4     	Black=2      Inaccurate:     	---       	Black=1} (13... gxf4 $19 14. Bb2 Bb4+ 15. Nc3 Qxd1+ (15... Bxe6 $2 16. Kf1 $19) 16. Rxd1 Rg8 (16... Bxe6 $2 17. O-O $19) 17. fxe4 fxe4 (17... Rxg2 $2 18. Rd2 $19)) 1/2-1/2

[Event "5th Schach960-Festival 2024"]
[Site "Berlin"]
[Date "2024.02.11"]
[Round "9.8"]
[White "Thomsen, Phil"]
[Black "Shchekachev, Andrei"]
[Result "0-1"]
[ECO "C40"]
[WhiteElo "2102"]
[BlackElo "2506"]
[Annotator "RC"]
[PlyCount "25"]
[EventDate "2024.02.08"]
[EventType "swiss"]
[EventCountry "GER"]
[SourceTitle "playchess.com"]
[Source "ChessBase"]
[SourceQuality "1"]
[TimeControl "1500+30"]

1. e4 {[%emt 0:00:36]} e5 {[%emt 0:01:25]} 2. Nf3 {[%emt 0:00:19]} b6 {[%emt 0:00:59]} 3. b4 {[%emt 0:00:51]} d6 {[%emt 0:00:46]} 4. Bc4 {[%emt 0:00:30]} b5 {[%emt 0:02:51]} 5. Bb3 {[%emt 0:01:28]} h6 {[%emt 0:00:46]} 6. h4 {[%emt 0:06:16]} h5 {[%emt 0:03:24]} 7. Qe2 {[%emt 0:04:15]} Bg4 {[%emt 0:06:24]} 8. Qe3 {[%emt 0:06:03]} Qe7 {[%emt 0:01:32]} 9. a3 {[%emt 0:04:56]} c5 {[%emt 0:04:22]} 10. bxc5 {[%emt 0:02:31]} Be6 {[%emt 0:01:23]} 11. Qe2 {[%emt 0:00:38]} Bxb3 {[%emt 0:02:13]} 12. Bb2 {[%emt 0:00:57]} Qe6 {[%emt 0:02:30]} 13. Nxe5 {[%emt 0:00:15]} 0-1